[Event "FIDE World Rapid Chess Championship 2021"]
[White "Erdos, Viktor"]
[Black "Sadhwani, Raunak"]
[WhiteFideId "719978"]
[BlackFideId "35093487"]
[WhiteElo "2601"]
[BlackElo "2454"]
[Result "0-1"]
[Round "11"]
[TimeControl "900+10"]
[Date "2021.12.28"]
[WhiteClock "0:00:29"]
[BlackClock "0:05:33"]

1. e4 {[%clk 0:15:00]}  e5 {[%clk 0:15:00]} 2. Nf3 {[%clk 0:15:00]}  Nc6 {[%clk 0:15:00]} 3. Bc4 {[%clk 0:15:00]}  d6 {[%clk 0:15:00]} 4. d4 {[%clk 0:15:00]}  exd4 {[%clk 0:15:00]} 5. Nxd4 {[%clk 0:15:00]}  Nf6 {[%clk 0:15:00]} 6. Nc3 {[%clk 0:15:00]}  Be7 {[%clk 0:15:00]} 7. O-O {[%clk 0:15:00]}  O-O {[%clk 0:16:08]} 8. Re1 {[%clk 0:15:00]}  Re8 {[%clk 0:16:08]} 9. h3 {[%clk 0:15:00]}  Nxd4 {[%clk 0:16:08]} 10. Qxd4 {[%clk 0:15:00]}  Nd7 {[%clk 0:16:08]} 11. Nd5 {[%clk 0:13:38]}  Bh4 {[%clk 0:16:24]} 12. Bf1 {[%clk 0:10:40]}  Ne5 {[%clk 0:16:33]} 13. Qd1 {[%clk 0:08:56]}  c6 {[%clk 0:16:41]} 14. Nf4 {[%clk 0:08:56]}  Ng6 {[%clk 0:16:36]} 15. g3 {[%clk 0:06:15]}  Bg5 {[%clk 0:16:36]} 16. Nxg6 {[%clk 0:06:15]}  Bxc1 {[%clk 0:16:36]} 17. Rxc1 {[%clk 0:06:15]}  hxg6 {[%clk 0:16:36]} 18. Qd4 {[%clk 0:05:39]}  Be6 {[%clk 0:13:32]} 19. Rcd1 {[%clk 0:05:39]}  Qa5 {[%clk 0:13:32]} 20. a3 {[%clk 0:05:39]}  Rad8 {[%clk 0:13:32]} 21. Bg2 {[%clk 0:05:39]}  g5 {[%clk 0:13:32]} 22. Re3 {[%clk 0:05:39]}  a6 {[%clk 0:13:32]} 23. Red3 {[%clk 0:05:18]}  Rd7 {[%clk 0:12:36]} 24. Qb4 {[%clk 0:05:14]}  Qxb4 {[%clk 0:12:36]} 25. axb4 {[%clk 0:05:14]}  Red8 {[%clk 0:12:36]} 26. f4 {[%clk 0:04:47]}  f6 {[%clk 0:09:46]} 27. Kf2 {[%clk 0:04:47]}  Kf8 {[%clk 0:09:46]} 28. h4 {[%clk 0:04:47]}  gxf4 {[%clk 0:08:17]} 29. gxf4 {[%clk 0:02:16]}  Ke7 {[%clk 0:08:17]} 30. Rg3 {[%clk 0:02:16]}  Kf8 {[%clk 0:08:17]} 31. Rgd3 {[%clk 0:02:16]}  Ke7 {[%clk 0:08:17]} 32. Rg3 {[%clk 0:02:16]}  Rg8 {[%clk 0:06:58]} 33. h5 {[%clk 0:01:52]}  Kf8 {[%clk 0:06:58]} 34. Bf3 {[%clk 0:01:52]}  Rh8 {[%clk 0:06:58]} 35. Rh1 {[%clk 0:01:52]}  Bf7 {[%clk 0:06:58]} 36. Ke3 {[%clk 0:00:53]}  Re7 {[%clk 0:06:21]} 37. Kd4 {[%clk 0:00:53]}  Rh6 {[%clk 0:06:21]} 38. b3 {[%clk 0:00:53]}  Rc7 {[%clk 0:06:21]} 39. Kd3 {[%clk 0:00:53]}  Re7 {[%clk 0:06:21]} 40. Kd4 {[%clk 0:00:53]}  Rc7 {[%clk 0:06:21]} 41. Kd3 {[%clk 0:00:53]}  c5 {[%clk 0:06:21]} 42. bxc5 {[%clk 0:00:53]}  dxc5 {[%clk 0:06:21]} 43. Ke3 {[%clk 0:00:48]}  a5 {[%clk 0:05:35]} 44. c4 {[%clk 0:00:48]}  b6 {[%clk 0:05:35]} 45. e5 {[%clk 0:00:48]}  Re7 {[%clk 0:05:35]} 46. Ke4 {[%clk 0:00:48]}  Be8 {[%clk 0:05:35]} 47. Rhh3 {[%clk 0:00:48]}  Bc6+ {[%clk 0:05:35]} 48. Kd3 {[%clk 0:00:48]}  fxe5 {[%clk 0:05:33]} 49. fxe5 {[%clk 0:00:29]}  Rxe5 {[%clk 0:05:33]} 50. Bxc6 {[%clk 0:00:29]}  Rxc6 {[%clk 0:05:33]} 51. Re3 {[%clk 0:00:29]} 0-1


[Site "http://www.Chess.com"]

[Event "FIDE World Rapid Chess Championship 2021"]
[White "Ter-Sahakyan, Samvel"]
[Black "Costachi, Mihnea"]
[WhiteFideId "13302531"]
[BlackFideId "1217518"]
[WhiteElo "2573"]
[BlackElo "2443"]
[Result "1-0"]
[Round "11"]
[TimeControl "900+10"]
[Date "2021.12.28"]
[WhiteClock "0:01:52"]
[BlackClock "0:00:51"]

1. e4 {[%clk 0:15:00]}  e5 {[%clk 0:15:00]} 2. Nf3 {[%clk 0:15:00]}  Nc6 {[%clk 0:15:00]} 3. Bb5 {[%clk 0:15:00]}  a6 {[%clk 0:15:00]} 4. Ba4 {[%clk 0:15:00]}  d6 {[%clk 0:15:00]} 5. O-O {[%clk 0:15:00]}  Bd7 {[%clk 0:15:00]} 6. c3 {[%clk 0:15:00]}  g6 {[%clk 0:15:00]} 7. d4 {[%clk 0:15:00]}  Bg7 {[%clk 0:15:00]} 8. Re1 {[%clk 0:15:24]}  Nf6 {[%clk 0:16:14]} 9. h3 {[%clk 0:15:24]}  O-O {[%clk 0:16:14]} 10. Bc2 {[%clk 0:15:24]}  Re8 {[%clk 0:16:14]} 11. Nbd2 {[%clk 0:15:24]}  Qe7 {[%clk 0:16:14]} 12. Nf1 {[%clk 0:15:24]}  Qf8 {[%clk 0:16:14]} 13. Ng3 {[%clk 0:14:15]}  Bh6 {[%clk 0:15:15]} 14. Ng5 {[%clk 0:14:10]}  Qg7 {[%clk 0:15:16]} 15. f4 {[%clk 0:14:02]}  exd4 {[%clk 0:11:55]} 16. cxd4 {[%clk 0:14:02]}  Nh5 {[%clk 0:10:47]} 17. Nxh5 {[%clk 0:11:18]}  gxh5 {[%clk 0:10:47]} 18. Be3 {[%clk 0:11:18]}  Nb4 {[%clk 0:10:47]} 19. Bb1 {[%clk 0:10:31]}  f6 {[%clk 0:05:59]} 20. Qb3+ {[%clk 0:09:52]}  d5 {[%clk 0:04:14]} 21. h4 {[%clk 0:09:52]}  Qf8 {[%clk 0:04:23]} 22. a3 {[%clk 0:07:10]}  fxg5 {[%clk 0:01:31]} 23. hxg5 {[%clk 0:07:10]}  Bxg5 {[%clk 0:01:31]} 24. fxg5 {[%clk 0:07:10]}  Nc6 {[%clk 0:01:31]} 25. Rf1 {[%clk 0:07:10]}  Qe7 {[%clk 0:01:31]} 26. e5 {[%clk 0:07:10]}  Be6 {[%clk 0:01:31]} 27. Rf6 {[%clk 0:07:10]}  Rf8 {[%clk 0:00:41]} 28. Qd3 {[%clk 0:06:47]}  Rxf6 {[%clk 0:00:41]} 29. gxf6 {[%clk 0:06:47]}  Qf7 {[%clk 0:00:41]} 30. Bc2 {[%clk 0:06:47]}  Nd8 {[%clk 0:00:46]} 31. Bh6 {[%clk 0:04:57]}  h4 {[%clk 0:00:46]} 32. Rf1 {[%clk 0:04:57]}  c5 {[%clk 0:00:46]} 33. Rf4 {[%clk 0:04:57]}  Qg6 {[%clk 0:00:46]} 34. Qxg6+ {[%clk 0:03:39]}  hxg6 {[%clk 0:00:18]} 35. Rxh4 {[%clk 0:03:39]}  cxd4 {[%clk 0:00:18]} 36. Bg7 {[%clk 0:03:39]}  Bf5 {[%clk 0:00:18]} 37. Bxf5 {[%clk 0:03:39]}  gxf5 {[%clk 0:00:18]} 38. e6 {[%clk 0:03:39]}  Nf7 {[%clk 0:00:18]} 39. exf7+ {[%clk 0:01:52]}  Kxf7 {[%clk 0:00:51]} 40. Rh8 {[%clk 0:01:52]}  d3 {[%clk 0:00:51]} 41. Kf2 {[%clk 0:01:52]}  Ra7 {[%clk 0:00:51]} 42. Ke3 {[%clk 0:01:52]}  b5 {[%clk 0:00:51]} 43. Rf8+ {[%clk 0:01:52]}  Kg6 {[%clk 0:00:51]} 44. Kxd3 {[%clk 0:01:52]}  Rc7 {[%clk 0:00:51]} 45. Bh8 {[%clk 0:01:52]}  Rc1 {[%clk 0:00:51]} 46. Rg8+ {[%clk 0:01:52]}  Kf7 {[%clk 0:00:51]} 47. Rg7+ {[%clk 0:01:52]}  Kf8 {[%clk 0:00:51]} 48. Re7 {[%clk 0:01:52]}  Rd1+ {[%clk 0:00:51]} 49. Kc2 {[%clk 0:01:52]}  Rg1 {[%clk 0:00:51]} 50. Bg7+ {[%clk 0:01:52]}  Kg8 {[%clk 0:00:51]} 51. Bh6 {[%clk 0:01:52]}  Rxg2+ {[%clk 0:00:51]} 52. Kb3 {[%clk 0:01:52]}  Rg3+ {[%clk 0:00:51]} 53. Ka2 {[%clk 0:01:52]}  Rg6 {[%clk 0:00:51]} 54. f7+ {[%clk 0:01:52]} 1-0


[Site "http://www.Chess.com"]

[Event "FIDE World Rapid Chess Championship 2021"]
[White "Sychev, Klementy"]
[Black "Alonso Rosell, Alvar"]
[WhiteFideId "4114060"]
[BlackFideId "2270544"]
[WhiteElo "2461"]
[BlackElo "2571"]
[Result "0-1"]
[Round "11"]
[TimeControl "900+10"]
[Date "2021.12.28"]
[WhiteClock "0:00:32"]
[BlackClock "0:00:04"]

1. d4 {[%clk 0:15:00]}  f5 {[%clk 0:15:00]} 2. Bg5 {[%clk 0:15:00]}  g6 {[%clk 0:15:19]} 3. Nc3 {[%clk 0:14:35]}  d5 {[%clk 0:15:19]} 4. e3 {[%clk 0:14:35]}  Bg7 {[%clk 0:12:53]} 5. h4 {[%clk 0:13:55]}  c6 {[%clk 0:12:16]} 6. Bd3 {[%clk 0:13:55]}  Qb6 {[%clk 0:12:16]} 7. Rb1 {[%clk 0:13:55]}  Nd7 {[%clk 0:11:09]} 8. Nf3 {[%clk 0:10:56]}  e5 {[%clk 0:09:26]} 9. dxe5 {[%clk 0:10:56]}  Nxe5 {[%clk 0:09:26]} 10. Nxe5 {[%clk 0:10:56]}  Bxe5 {[%clk 0:09:26]} 11. h5 {[%clk 0:10:56]}  Be6 {[%clk 0:09:39]} 12. Ne2 {[%clk 0:08:04]}  Qc7 {[%clk 0:08:20]} 13. Nd4 {[%clk 0:08:04]}  Bf7 {[%clk 0:08:20]} 14. b4 {[%clk 0:04:40]}  Qd6 {[%clk 0:07:13]} 15. Nf3 {[%clk 0:03:44]}  Bf6 {[%clk 0:02:39]} 16. Bf4 {[%clk 0:03:44]}  Qe7 {[%clk 0:02:39]} 17. Kf1 {[%clk 0:03:44]}  g5 {[%clk 0:02:39]} 18. Bg3 {[%clk 0:03:44]}  Nh6 {[%clk 0:02:39]} 19. c3 {[%clk 0:03:10]}  O-O {[%clk 0:02:05]} 20. Qc2 {[%clk 0:03:10]}  Be6 {[%clk 0:02:05]} 21. Be5 {[%clk 0:02:09]}  Rae8 {[%clk 0:01:26]} 22. Re1 {[%clk 0:02:09]}  Bxe5 {[%clk 0:01:26]} 23. Nxe5 {[%clk 0:02:09]}  f4 {[%clk 0:01:26]} 24. exf4 {[%clk 0:02:09]}  gxf4 {[%clk 0:01:26]} 25. Nf3 {[%clk 0:02:09]}  Qg7 {[%clk 0:01:26]} 26. Qd2 {[%clk 0:02:09]}  Bg4 {[%clk 0:01:21]} 27. Rxe8 {[%clk 0:00:32]}  Rxe8 {[%clk 0:01:21]} 28. Nd4 {[%clk 0:00:32]}  Qf6 {[%clk 0:01:21]} 29. f3 {[%clk 0:00:32]}  Bd7 {[%clk 0:01:21]} 30. Kf2 {[%clk 0:00:32]}  Nf7 {[%clk 0:01:21]} 31. Ne2 {[%clk 0:00:32]}  Ne5 {[%clk 0:01:21]} 32. Re1 {[%clk 0:00:32]}  Qh4+ {[%clk 0:01:21]} 33. Kf1 {[%clk 0:00:32]}  Nxf3 {[%clk 0:01:21]} 34. Bxh7+ {[%clk 0:00:32]}  Kh8 {[%clk 0:00:04]} 0-1


[Site "http://www.Chess.com"]

[Event "FIDE World Rapid Chess Championship 2021"]
[White "Faizrakhmanov, Ramil"]
[Black "Vokhidov, Shamsiddin"]
[WhiteFideId "24103209"]
[BlackFideId "14204223"]
[WhiteElo "2461"]
[BlackElo "2546"]
[Result "1/2-1/2"]
[Round "11"]
[TimeControl "900+10"]
[Date "2021.12.28"]
[WhiteClock "0:03:55"]
[BlackClock "0:03:43"]

1. d4 {[%clk 0:15:00]}  Nf6 {[%clk 0:15:00]} 2. c4 {[%clk 0:15:00]}  e6 {[%clk 0:15:00]} 3. Nf3 {[%clk 0:15:00]}  d5 {[%clk 0:15:00]} 4. Nc3 {[%clk 0:15:00]}  Bb4 {[%clk 0:15:00]} 5. Qa4+ {[%clk 0:15:00]}  Nc6 {[%clk 0:15:00]} 6. e3 {[%clk 0:15:00]}  O-O {[%clk 0:15:00]} 7. Qc2 {[%clk 0:15:00]}  b6 {[%clk 0:15:00]} 8. Be2 {[%clk 0:15:00]}  Ba6 {[%clk 0:15:07]} 9. cxd5 {[%clk 0:14:39]}  Bxe2 {[%clk 0:15:07]} 10. Qxe2 {[%clk 0:14:39]}  exd5 {[%clk 0:15:07]} 11. Bd2 {[%clk 0:14:39]}  Re8 {[%clk 0:14:21]} 12. O-O {[%clk 0:12:55]}  a6 {[%clk 0:11:28]} 13. Rfc1 {[%clk 0:13:12]}  Qd7 {[%clk 0:11:28]} 14. a3 {[%clk 0:12:01]}  Bd6 {[%clk 0:10:16]} 15. b4 {[%clk 0:12:01]}  Ne7 {[%clk 0:10:16]} 16. b5 {[%clk 0:09:58]}  a5 {[%clk 0:09:52]} 17. a4 {[%clk 0:09:58]}  Ng6 {[%clk 0:09:52]} 18. Qd3 {[%clk 0:09:58]}  Re7 {[%clk 0:09:52]} 19. Rc2 {[%clk 0:09:58]}  Rae8 {[%clk 0:08:52]} 20. Bc1 {[%clk 0:09:17]}  Nf4 {[%clk 0:08:52]} 21. Qd1 {[%clk 0:07:24]}  Qf5 {[%clk 0:08:07]} 22. Ba3 {[%clk 0:07:24]}  Bxa3 {[%clk 0:07:53]} 23. Rxa3 {[%clk 0:02:08]}  g5 {[%clk 0:07:53]} 24. Ne5 {[%clk 0:02:08]}  Ng6 {[%clk 0:07:53]} 25. Nxg6 {[%clk 0:03:55]}  hxg6 {[%clk 0:03:43]} 26. Ne2 {[%clk 0:03:55]}  Ne4 {[%clk 0:03:43]} 1/2-1/2


[Site "http://www.Chess.com"]

[Event "FIDE World Rapid Chess Championship 2021"]
[White "Bartel, Mateusz"]
[Black "Mikhalevski, Victor"]
[WhiteFideId "1112635"]
[BlackFideId "2801914"]
[WhiteElo "2543"]
[BlackElo "2366"]
[Result "1/2-1/2"]
[Round "11"]
[TimeControl "900+10"]
[Date "2021.12.28"]
[WhiteClock "0:04:01"]
[BlackClock "0:01:43"]

1. e4 {[%clk 0:15:00]}  e5 {[%clk 0:15:00]} 2. Nf3 {[%clk 0:15:00]}  Nc6 {[%clk 0:15:00]} 3. Bb5 {[%clk 0:15:00]}  a6 {[%clk 0:15:00]} 4. Ba4 {[%clk 0:15:00]}  Nf6 {[%clk 0:15:00]} 5. Nc3 {[%clk 0:15:00]}  b5 {[%clk 0:15:00]} 6. Bb3 {[%clk 0:15:00]}  Bc5 {[%clk 0:15:00]} 7. Nd5 {[%clk 0:15:00]}  d6 {[%clk 0:15:58]} 8. c3 {[%clk 0:16:03]}  Na5 {[%clk 0:12:38]} 9. Bc2 {[%clk 0:14:49]}  Nxd5 {[%clk 0:09:44]} 10. exd5 {[%clk 0:14:49]}  Ba7 {[%clk 0:09:44]} 11. d4 {[%clk 0:14:49]}  Bb7 {[%clk 0:07:08]} 12. O-O {[%clk 0:12:58]}  Bxd5 {[%clk 0:07:08]} 13. dxe5 {[%clk 0:12:58]}  dxe5 {[%clk 0:04:59]} 14. Nxe5 {[%clk 0:13:11]}  O-O {[%clk 0:04:59]} 15. Qg4 {[%clk 0:13:11]}  Re8 {[%clk 0:04:59]} 16. Bf4 {[%clk 0:12:40]}  Nc4 {[%clk 0:03:01]} 17. Nxc4 {[%clk 0:11:00]}  Bxc4 {[%clk 0:02:44]} 18. Rfe1 {[%clk 0:11:00]}  Qf6 {[%clk 0:02:44]} 19. Qg3 {[%clk 0:11:00]}  c6 {[%clk 0:02:44]} 20. h4 {[%clk 0:08:33]}  h6 {[%clk 0:02:26]} 21. Rad1 {[%clk 0:08:33]}  Bd5 {[%clk 0:02:26]} 22. Bb3 {[%clk 0:08:33]}  Bxb3 {[%clk 0:02:26]} 23. axb3 {[%clk 0:08:33]}  Qf5 {[%clk 0:02:26]} 24. Bxh6 {[%clk 0:07:26]}  Qxf2+ {[%clk 0:02:04]} 25. Qxf2 {[%clk 0:07:26]}  Rxe1+ {[%clk 0:02:04]} 26. Rxe1 {[%clk 0:07:26]}  Bxf2+ {[%clk 0:02:04]} 27. Kxf2 {[%clk 0:07:26]}  gxh6 {[%clk 0:02:04]} 28. Rd1 {[%clk 0:07:26]}  Kg7 {[%clk 0:02:04]} 29. Rd6 {[%clk 0:07:26]}  c5 {[%clk 0:02:04]} 30. Rc6 {[%clk 0:07:31]}  Rd8 {[%clk 0:01:34]} 31. Ke2 {[%clk 0:07:31]}  Re8+ {[%clk 0:01:34]} 32. Kf3 {[%clk 0:07:31]}  Rd8 {[%clk 0:01:34]} 33. Rxa6 {[%clk 0:07:31]}  Rd2 {[%clk 0:01:34]} 34. Rb6 {[%clk 0:07:31]}  b4 {[%clk 0:01:34]} 35. cxb4 {[%clk 0:07:31]}  cxb4 {[%clk 0:01:34]} 36. Rxb4 {[%clk 0:07:31]}  Rxb2 {[%clk 0:01:34]} 37. Rg4+ {[%clk 0:07:31]}  Kf6 {[%clk 0:01:34]} 38. Rf4+ {[%clk 0:07:31]}  Kg6 {[%clk 0:01:34]} 39. Rb4 {[%clk 0:06:14]}  h5 {[%clk 0:02:29]} 40. Rb5 {[%clk 0:06:14]}  Rd2 {[%clk 0:02:29]} 41. g3 {[%clk 0:05:05]}  Rd3+ {[%clk 0:01:05]} 42. Kf4 {[%clk 0:05:05]}  f6 {[%clk 0:01:05]} 43. Rb8 {[%clk 0:05:05]}  Rd4+ {[%clk 0:01:05]} 44. Ke3 {[%clk 0:05:05]}  Rd1 {[%clk 0:01:05]} 45. Rc8 {[%clk 0:05:05]}  Kf5 {[%clk 0:01:05]} 46. Rc4 {[%clk 0:03:52]}  Rb1 {[%clk 0:01:21]} 47. Rf4+ {[%clk 0:03:52]}  Ke5 {[%clk 0:01:21]} 48. Rb4 {[%clk 0:03:52]}  Kf5 {[%clk 0:01:21]} 49. Kf2 {[%clk 0:03:52]}  Rd1 {[%clk 0:01:21]} 50. Rf4+ {[%clk 0:03:52]}  Ke5 {[%clk 0:01:21]} 51. Rf3 {[%clk 0:03:52]}  Rd2+ {[%clk 0:01:21]} 52. Ke1 {[%clk 0:03:52]}  Rg2 {[%clk 0:01:21]} 53. Kd1 {[%clk 0:03:52]}  f5 {[%clk 0:01:21]} 54. Kc1 {[%clk 0:04:01]}  Ke4 {[%clk 0:01:43]} 55. Rc3 {[%clk 0:04:01]}  Kd4 {[%clk 0:01:43]} 56. Rc4+ {[%clk 0:04:01]}  Ke5 {[%clk 0:01:43]} 57. Rc3 {[%clk 0:04:01]} 1/2-1/2


[Site "http://www.Chess.com"]

[Event "FIDE World Rapid Chess Championship 2021"]
[White "Dziuba, Marcin"]
[Black "Zvjaginsev, Vadim"]
[WhiteFideId "1112953"]
[BlackFideId "4113403"]
[WhiteElo "2424"]
[BlackElo "2539"]
[Result "0-1"]
[Round "11"]
[TimeControl "900+10"]
[Date "2021.12.28"]
[WhiteClock "0:04:03"]
[BlackClock "0:02:34"]

1. d4 {[%clk 0:15:00]}  d6 {[%clk 0:15:00]} 2. c4 {[%clk 0:15:00]}  e5 {[%clk 0:15:00]} 3. Nc3 {[%clk 0:15:00]}  exd4 {[%clk 0:15:00]} 4. Qxd4 {[%clk 0:15:00]}  Nc6 {[%clk 0:15:00]} 5. Qd2 {[%clk 0:14:57]}  a5 {[%clk 0:15:17]} 6. b3 {[%clk 0:14:57]}  Nf6 {[%clk 0:15:17]} 7. Bb2 {[%clk 0:14:57]}  Be6 {[%clk 0:15:09]} 8. e4 {[%clk 0:14:15]}  a4 {[%clk 0:15:09]} 9. Rd1 {[%clk 0:14:15]}  axb3 {[%clk 0:12:41]} 10. axb3 {[%clk 0:12:44]}  g6 {[%clk 0:12:41]} 11. Bd3 {[%clk 0:12:44]}  Bg7 {[%clk 0:12:41]} 12. Nge2 {[%clk 0:12:44]}  O-O {[%clk 0:12:41]} 13. O-O {[%clk 0:12:44]}  Re8 {[%clk 0:11:14]} 14. Nd5 {[%clk 0:12:29]}  Ne5 {[%clk 0:11:14]} 15. Bb1 {[%clk 0:10:07]}  Bxd5 {[%clk 0:11:14]} 16. cxd5 {[%clk 0:09:39]}  Ned7 {[%clk 0:09:11]} 17. f3 {[%clk 0:09:39]}  Rc8 {[%clk 0:09:11]} 18. b4 {[%clk 0:09:39]}  Qe7 {[%clk 0:07:49]} 19. Nc3 {[%clk 0:08:40]}  Ne5 {[%clk 0:07:49]} 20. Ba2 {[%clk 0:08:40]}  Ned7 {[%clk 0:07:04]} 21. Rde1 {[%clk 0:07:50]}  c5 {[%clk 0:04:51]} 22. dxc6 {[%clk 0:07:50]}  bxc6 {[%clk 0:04:51]} 23. f4 {[%clk 0:07:50]}  Rb8 {[%clk 0:04:51]} 24. Kh1 {[%clk 0:05:01]}  Rxb4 {[%clk 0:04:23]} 25. e5 {[%clk 0:05:01]}  dxe5 {[%clk 0:04:23]} 26. fxe5 {[%clk 0:05:01]}  Rxb2 {[%clk 0:03:35]} 27. exf6 {[%clk 0:04:03]}  Qxe1 {[%clk 0:02:34]} 28. Bxf7+ {[%clk 0:04:03]}  Kxf7 {[%clk 0:02:34]} 29. Qxd7+ {[%clk 0:04:03]}  Re7 {[%clk 0:02:34]} 30. Qd3 {[%clk 0:04:03]}  Bxf6 {[%clk 0:02:34]} 0-1


[Site "http://www.Chess.com"]

[Event "FIDE World Rapid Chess Championship 2021"]
[White "Durarbayli, Vasif"]
[Black "Klimkowski, Jan"]
[WhiteFideId "13402935"]
[BlackFideId "21856222"]
[WhiteElo "2532"]
[BlackElo "2211"]
[Result "1-0"]
[Round "11"]
[TimeControl "900+10"]
[Date "2021.12.28"]
[WhiteClock "0:00:29"]
[BlackClock "0:00:55"]

1. e4 {[%clk 0:15:00]}  c5 {[%clk 0:15:00]} 2. Nf3 {[%clk 0:15:00]}  d6 {[%clk 0:15:00]} 3. d4 {[%clk 0:15:00]}  cxd4 {[%clk 0:15:00]} 4. Nxd4 {[%clk 0:15:00]}  Nf6 {[%clk 0:15:00]} 5. Nc3 {[%clk 0:15:00]}  a6 {[%clk 0:15:00]} 6. h4 {[%clk 0:15:00]}  e5 {[%clk 0:15:00]} 7. Nf5 {[%clk 0:15:00]}  Bxf5 {[%clk 0:14:58]} 8. exf5 {[%clk 0:15:49]}  d5 {[%clk 0:14:58]} 9. g4 {[%clk 0:15:49]}  Bb4 {[%clk 0:14:58]} 10. Bg2 {[%clk 0:11:04]}  Nc6 {[%clk 0:14:13]} 11. a3 {[%clk 0:09:56]}  Bxc3+ {[%clk 0:12:38]} 12. bxc3 {[%clk 0:07:10]}  Qa5 {[%clk 0:12:38]} 13. O-O {[%clk 0:07:10]}  O-O-O {[%clk 0:12:38]} 14. g5 {[%clk 0:07:10]}  Ne4 {[%clk 0:12:38]} 15. c4 {[%clk 0:07:10]}  Nc3 {[%clk 0:11:37]} 16. Qe1 {[%clk 0:07:04]}  d4 {[%clk 0:08:15]} 17. Bd2 {[%clk 0:04:15]}  Qc5 {[%clk 0:07:32]} 18. Bxc3 {[%clk 0:02:19]}  dxc3 {[%clk 0:07:32]} 19. Qxc3 {[%clk 0:02:19]}  Rd4 {[%clk 0:07:32]} 20. Qh3 {[%clk 0:02:19]}  Qxc4 {[%clk 0:05:00]} 21. f6+ {[%clk 0:03:23]}  Kc7 {[%clk 0:05:00]} 22. fxg7 {[%clk 0:03:23]}  Rg8 {[%clk 0:05:00]} 23. Rab1 {[%clk 0:03:23]}  Rxg7 {[%clk 0:05:00]} 24. Rfd1 {[%clk 0:02:29]}  Rg6 {[%clk 0:03:36]} 25. Rxd4 {[%clk 0:00:00]}  Qxd4 {[%clk 0:03:36]} 26. Qb3 {[%clk 0:00:00]}  b5 {[%clk 0:00:26]} 27. Qxf7+ {[%clk 0:00:12]}  Qd7 {[%clk 0:00:26]} 28. Qxd7+ {[%clk 0:00:12]}  Kxd7 {[%clk 0:00:26]} 29. Be4 {[%clk 0:00:12]}  Rg7 {[%clk 0:00:26]} 30. c4 {[%clk 0:00:12]}  Nd4 {[%clk 0:00:26]} 31. cxb5 {[%clk 0:00:12]}  axb5 {[%clk 0:00:26]} 32. a4 {[%clk 0:00:12]}  Ne2+ {[%clk 0:00:26]} 33. Kg2 {[%clk 0:00:12]}  Nc3 {[%clk 0:00:26]} 34. Bf5+ {[%clk 0:00:12]}  Kd6 {[%clk 0:01:01]} 35. Rb3 {[%clk 0:00:10]}  Nxa4 {[%clk 0:01:01]} 36. Rxb5 {[%clk 0:00:10]}  h6 {[%clk 0:01:01]} 37. Rb4 {[%clk 0:00:10]}  Nc3 {[%clk 0:01:01]} 38. Rb6+ {[%clk 0:00:10]}  Kc5 {[%clk 0:01:01]} 39. Rxh6 {[%clk 0:00:10]}  Nd5 {[%clk 0:01:01]} 40. Kg3 {[%clk 0:00:10]}  Nf4 {[%clk 0:01:01]} 41. Kg4 {[%clk 0:00:10]}  Ra7 {[%clk 0:01:01]} 42. Be4 {[%clk 0:00:10]}  Kd4 {[%clk 0:01:01]} 43. Kf5 {[%clk 0:00:10]}  Nh3 {[%clk 0:01:01]} 44. Rd6+ {[%clk 0:00:10]}  Kc5 {[%clk 0:01:01]} 45. Rd5+ {[%clk 0:00:10]}  Kc4 {[%clk 0:01:01]} 46. f3 {[%clk 0:00:10]}  Rf7+ {[%clk 0:00:55]} 47. Kxe5 {[%clk 0:00:29]}  Nf4 {[%clk 0:00:55]} 48. Rd2 {[%clk 0:00:29]}  Rf8 {[%clk 0:00:55]} 49. Rc2+ {[%clk 0:00:29]}  Kb5 {[%clk 0:00:55]} 50. g6 {[%clk 0:00:29]}  Nh5 {[%clk 0:00:55]} 51. Ke6 {[%clk 0:00:29]}  Rf4 {[%clk 0:00:55]} 52. Rc7 {[%clk 0:00:29]} 1-0


[Site "http://www.Chess.com"]

[Event "FIDE World Rapid Chess Championship 2021"]
[White "Klekowski, Maciej"]
[Black "Sindarov, Javokhir"]
[WhiteFideId "1132717"]
[BlackFideId "14205483"]
[WhiteElo "2528"]
[BlackElo "2353"]
[Result "0-1"]
[Round "11"]
[TimeControl "900+10"]
[Date "2021.12.28"]
[WhiteClock "0:00:57"]
[BlackClock "0:08:28"]

1. c4 {[%clk 0:15:00]}  g6 {[%clk 0:15:00]} 2. d4 {[%clk 0:15:00]}  c5 {[%clk 0:15:00]} 3. d5 {[%clk 0:15:00]}  Bg7 {[%clk 0:15:00]} 4. Nc3 {[%clk 0:15:00]}  Nf6 {[%clk 0:15:00]} 5. e4 {[%clk 0:15:00]}  d6 {[%clk 0:15:00]} 6. h3 {[%clk 0:15:40]}  O-O {[%clk 0:16:02]} 7. Nf3 {[%clk 0:15:40]}  e6 {[%clk 0:16:02]} 8. Bd3 {[%clk 0:15:40]}  Nbd7 {[%clk 0:16:02]} 9. O-O {[%clk 0:15:40]}  e5 {[%clk 0:16:02]} 10. a3 {[%clk 0:15:40]}  h6 {[%clk 0:16:02]} 11. b4 {[%clk 0:15:40]}  Nh7 {[%clk 0:16:02]} 12. Qc2 {[%clk 0:15:40]}  b6 {[%clk 0:16:02]} 13. Rb1 {[%clk 0:15:40]}  Ndf6 {[%clk 0:16:08]} 14. bxc5 {[%clk 0:13:32]}  bxc5 {[%clk 0:16:08]} 15. Qa4 {[%clk 0:13:32]}  Ne8 {[%clk 0:16:08]} 16. Bd2 {[%clk 0:11:31]}  f5 {[%clk 0:13:07]} 17. Qc6 {[%clk 0:11:31]}  Bd7 {[%clk 0:13:07]} 18. Qa6 {[%clk 0:11:31]}  Bc8 {[%clk 0:13:11]} 19. Qc6 {[%clk 0:09:24]}  Bd7 {[%clk 0:13:11]} 20. Qa6 {[%clk 0:09:24]}  Rf7 {[%clk 0:13:11]} 21. Nb5 {[%clk 0:09:24]}  Bc8 {[%clk 0:13:11]} 22. Qa5 {[%clk 0:09:24]}  Qe7 {[%clk 0:13:11]} 23. Rb3 {[%clk 0:07:42]}  Qf8 {[%clk 0:13:05]} 24. Rfb1 {[%clk 0:06:47]}  Bf6 {[%clk 0:11:26]} 25. Nc3 {[%clk 0:06:47]}  Bg5 {[%clk 0:11:26]} 26. Nxg5 {[%clk 0:06:47]}  hxg5 {[%clk 0:11:26]} 27. Rb8 {[%clk 0:06:47]}  Rxb8 {[%clk 0:11:26]} 28. Rxb8 {[%clk 0:06:47]}  Bd7 {[%clk 0:11:26]} 29. Qxa7 {[%clk 0:06:47]}  g4 {[%clk 0:10:43]} 30. hxg4 {[%clk 0:06:08]}  fxg4 {[%clk 0:10:43]} 31. Be3 {[%clk 0:06:08]}  g3 {[%clk 0:09:51]} 32. Nd1 {[%clk 0:04:44]}  Nhf6 {[%clk 0:07:01]} 33. f3 {[%clk 0:04:44]}  g5 {[%clk 0:07:01]} 34. Qa5 {[%clk 0:00:57]}  Qh6 {[%clk 0:08:28]} 35. Qd2 {[%clk 0:00:57]}  Ng4 {[%clk 0:08:28]} 36. Rxe8+ {[%clk 0:00:57]}  Bxe8 {[%clk 0:08:28]} 37. Qe1 {[%clk 0:00:57]}  Qh2+ {[%clk 0:08:28]} 38. Kf1 {[%clk 0:00:57]}  Rxf3+ {[%clk 0:08:28]} 0-1


[Site "http://www.Chess.com"]